Cogmind - Beta 17.1 @@@ ROGUE MODE // 2026.09.09 @ 05:22:41 Player: J1ang-5h1 Result: Core melted Performance ------------- Evolutions (4) 2000 Regions Visited (9) 1800 Robots Destroyed (167) 835 Value Destroyed (6344) 6344 Prototype IDs (10) 200 Alien Tech Used (0) 0 Bonus (14625) 14625 TOTAL SCORE: 25804 Bonus ------- High Alert Combat Kills 1387 Follower Combat Kills 988 Prayed to X0-1V1 5000 Major X0-1V1 Interference 5650 Entered Garrisons 600 Used RIF Installer 1000 Cogmind --------- Core Integrity 0/1000 Matter 281/300 Energy 84/100 System Corruption 51% Temperature Critical (539) Movement Core (1550) Ox30 Location -6/Garrison Parts ------- > --- POWER (1) -------- (None) > --- PROPULSION (4) --- (None) > --- UTILITY (6) ------ Huge Storage Unit Relay Coupler [Behemoth] (2) Dynamic Insulation System X0-1V1's Piety Tracker > --- WEAPON (4) ------- Improved Arc Projector Grenade Launcher > --- INVENTORY (25) --- Reinforced Deuterium Engine Matter Compressor (250) Improved Trap Scanner Enhanced Optical Array Active Sensor Suite Weapon Cycler Improved Transmission Jammer Phase Shifter Improved Focal Shield Thermal Shield Improved Hardlight Generator Improved Shield Generator Phase Cannon Remote Datajack Heavy Mace Peak State ------------ > --- POWER ------------ Reinforced Deuterium Engine > --- PROPULSION ------- Armored Treads Armored Treads Armored Treads Armored Treads > --- UTILITY ---------- Huge Storage Unit Active Sensor Suite Improved Hacking Suite X0-1V1's Piety Tracker > --- WEAPON ----------- Heavy Phase Cannon Heavy Phase Cannon Heavy Phase Cannon Heavy Phase Cannon > --- INVENTORY -------- High-capacity Battery Matter Compressor Improved Trap Scanner Enhanced Optical Array Active Sensor Suite Weapon Cycler Improved Transmission Jammer Phase Shifter Medium Reflective Plating Insulated Plating Improved Focal Shield Thermal Shield Improved Hardlight Generator Improved Shield Generator Relay Coupler [Behemoth] Dynamic Insulation System Improved Arc Projector Improved Arc Projector Magnetic Acceleration Cannon Grenade Launcher Improved Datajack Remote Datajack Heavy Mace [Rating: 98] Favorites ----------- Power Heavy Ion Engine Engine Heavy Ion Engine Power Core Fission Core Propulsion Armored Treads Treads Armored Treads Wheel Compact Wheel Flight Unit VTOL Module Utility Huge Storage Unit Device X0-1V1's Piety Tracker Storage Huge Storage Unit Processor Core Analyzer Hackware Improved Hacking Suite Protection Insulated Plating Weapon Phase Cannon Energy Gun Medium Laser Energy Cannon Phase Cannon Ballistic Gun Light Assault Rifle Ballistic Cannon Magnetic Acceleration Cannon Launcher Rocket Launcher Special Weapon Mining Laser Impact Weapon Heavy Mace Slashing Weapon Axe Special Melee Weapon Improved Datajack Build | -11 -10 -9 -8 -8 -7 -6 -6 -6 -6 ------- Run | Yrd Mat Mat Mat Gar Fac Fac Gar Fac Gar Slots Evolved 8 | . . 2 2 . 2 2 . . . Power . | . . . . . . . . . . Propulsion 2 | . . . 1 . 1 . . . . Utility 4 | . . 1 . . 1 2 . . . Weapon 2 | . . 1 1 . . . . . . Parts Attached 140 | 7 14 22 11 19 2 15 33 . 17 Power 9 | 1 2 2 . 1 . 1 2 . . Engine 7 | 1 2 2 . 1 . . 1 . . Core 2 | . . . . . . 1 1 . . Reactor . | . . . . . . . . . . Propulsion 34 | 2 4 9 4 2 1 1 10 . 1 Treads 20 | 2 . 8 1 1 . . 7 . 1 Leg . | . . . . . . . . . . Wheel 11 | . 4 1 3 1 1 1 . . . Hover . | . . . . . . . . . . Flight 3 | . . . . . . . 3 . . Utility 52 | 2 5 5 3 8 1 8 11 . 9 Device 24 | 1 1 2 2 2 . 3 8 . 5 Storage 6 | 1 2 1 . . 1 . . . 1 Processor 3 | . . . . . . . 3 . . Hackware 8 | . . . . 4 . 3 . . 1 Protection 11 | . 2 2 1 2 . 2 . . 2 Artifact . | . . . . . . . . . . Weapon 45 | 2 3 6 4 8 . 5 10 . 7 Energy Gun 8 | 1 1 1 . 1 . 2 . . 2 Energy Cannon 15 | . . . . . . 2 10 . 3 Ballistic Gun 6 | 1 1 4 . . . . . . . Ballistic Cannon 1 | . . . . . . . . . 1 Launcher 4 | . . 1 . 2 . 1 . . . Special Weapon 2 | . 1 . . . . . . . 1 Impact Weapon 4 | . . . . 4 . . . . . Slashing Weapon 4 | . . . 4 . . . . . . Piercing Weapon . | . . . . . . . . . . Special Melee Weapon 1 | . . . . 1 . . . . . Unidentified Prototypes 2 | . 1 . . . . . 1 . . Corrupted Parts 1 | . . . . . . 1 . . . System Corruption 7 | . . . . . . 7 . . . Parts Lost 49 | . . 6 . 4 . 7 13 . 19 Power 3 | . . 1 . . . . 1 . 1 Propulsion 16 | . . 2 . 1 . 2 6 . 5 Utility 18 | . . 1 . 2 . 3 4 . 8 Weapon 12 | . . 2 . 1 . 2 2 . 5 Highest Loss Streak 13 | . . 2 . 2 . 6 6 . 13 To Critical Strikes 2 | . . . . . . . . . 2 Average Backups 22 | 5 18 24 24 24 23 22 22 23 22 Power 1 | 1 . 1 1 . . . 1 . . Propulsion 1 | 1 . 1 4 4 3 . . . . Utility 13 | 1 11 15 11 12 14 15 15 16 14 Weapon 5 | 1 5 6 6 6 5 5 4 5 5 Tool/Special . | . . . . . . . . . . Unused Backups 58 | 1 1 15 3 10 . 2 13 . 13 Power 6 | . . . 1 . . 1 3 . 1 Propulsion 3 | 1 . 2 . . . . . . . Utility 38 | . . 8 2 9 . 1 8 . 10 Weapon 10 | . 1 5 . 1 . . 2 . 1 Tool/Special 1 | . . . . . . . . . 1 Average Slot Usage (%) 94 | . 100 97 99 93 82 90 92 86 87 Engine 7 | . 14 10 9 9 7 5 1 6 6 Core 1 | . . . . . . . 4 . . Treads 12 | . 9 13 2 3 . 9 18 26 22 Wheel 8 | . 18 7 24 18 14 7 . . . Device 12 | . 8 18 15 11 14 14 9 13 17 Storage 8 | . 14 11 9 9 7 6 6 6 10 Processor 5 | . . . . . . . 15 . . Hackware 2 | . . . . . . 7 6 6 1 Protection 3 | . 5 2 2 5 7 9 . . 3 Energy Gun 4 | . 12 10 . . . 2 . . . Energy Cannon 9 | . . . . . . 7 24 26 22 Ballistic Gun 7 | . 14 21 . . . . . . 1 Impact Weapon 1 | . . . . 2 30 15 1 . . Slashing Weapon 5 | . . . 35 31 . . . . . Peak Build Rating 98 | 8 22 36 45 47 57 70 98 98 98 Average Rating 46 | 6 9 29 40 41 56 64 73 98 70 On Entrance 47 | . 8 22 36 39 47 57 68 98 98 Avg Prop Armor Cover (%) 10 | . 14 . . 2 . 16 7 . . Naked Turns . | . . . . . . . . . . Heaviest Build 146 | 12 89 98 104 106 108 121 140 140 146 Greatest Support 100 | 40 40 40 60 48 56 56 100 80 80 Greatest Overweight (x) 41 | . 5 9 2 3 1 4 41 1 6 Average Overweight (x) 2 | . 2 3 1 2 1 2 1 1 1 Largest Inventory Capacity 25 | 8 25 25 25 25 25 25 25 25 25 Average Capacity 24 | 7 21 25 25 25 25 25 25 25 25 Most Carried 25 | 8 25 25 25 25 25 25 25 25 25 Average Carried 23 | 5 18 24 24 24 24 23 24 25 23 Final Capacity 25 | 8 25 25 25 25 25 25 25 25 25 Final Carried 25 | 8 25 25 25 25 25 25 25 25 17 Class Distribution -------------------- 29% | Mutant 23% | Scavenger-Gunner 17% | Gunner 10% | Commander-Mutant 6% | Scavenger-Tank 4% | Skirmisher 3% | Commander-Gunner Dominant Class ---------------- Mutant | -10/Materials Gunner | -9/Materials Mutant | -8/Materials Commander-Mutant | -8/Garrison Commander-Mutant | -7/Factory Mutant | -6/Factory Scavenger-Gunner | -6/Garrison Skirmisher | -6/Factory Scavenger-Tank | -6/Garrison Resources | -11 -10 -9 -8 -8 -7 -6 -6 -6 -6 ----------- Run | Yrd Mat Mat Mat Gar Fac Fac Gar Fac Gar Matter Collected 4207 | 305 392 544 400 650 . 844 757 . 315 Remotely . | . . . . . . . . . . Salvage Created 6496 | 223 642 1340 335 925 . 732 1025 15 1259 Parts 351 | 22 36 96 18 42 . 25 66 . 46 Haulers Intercepted 8 | . 2 5 1 . . . . . . Recyclers Shooed 3 | . 1 1 1 . . . . . . Parts Field Recycled . | . . . . . . . . . . Retrieved Matter . | . . . . . . . . . . Parts Self-Destructed . | . . . . . . . . . . Prevented . | . . . . . . . . . . Parts Restored . | . . . . . . . . . . Kills | -11 -10 -9 -8 -8 -7 -6 -6 -6 -6 ------- Run | Yrd Mat Mat Mat Gar Fac Fac Gar Fac Gar Combat Hostiles Destroyed 129 | . 18 26 3 19 . 12 25 . 26 Melee 16 | . . . 3 13 . . . . . Guns 43 | . 17 19 . . . 5 . . 2 Cannons 40 | . . . . . . 2 18 . 20 AOE 25 | . . 6 . 6 . 4 7 . 2 Classes Destroyed 19 | 2 6 3 . 1 . 2 4 . 1 Worker 3 | . 1 1 1 . . . . . . Builder 1 | . . 1 . . . . . . . Tunneler 11 | 8 1 2 . . . . . . . Hauler 8 | . 2 5 1 . . . . . . Recycler 5 | 1 . 1 . . . 3 . . . Operator 2 | . . 1 . . . . 1 . . Drone 1 | . . . . . . . 1 . . Watcher 9 | . 2 3 4 . . . . . . Swarmer 44 | . 9 6 . 8 . 3 11 . 7 Grunt 40 | . 8 11 2 9 . 5 3 . 2 Brawler 5 | . . . . . . . . . 5 Duelist 2 | . . . . 1 . . . . 1 Sentry 19 | . . 9 1 1 . 2 3 . 3 Specialist 4 | . . . . . . . 1 . 3 Hunter 3 | . . . . . . . 3 . . Programmer 7 | . . . . . . 1 1 . 5 Heavy 2 | . . . . . . 1 1 . . Behemoth 1 | . . . . . . . 1 . . Subdweller 1 | . 1 . . . . . . . . Best Kill Streak 16 | 3 4 6 2 3 . 9 7 . 16 Combat Bots Only 16 | . 4 4 2 3 . 9 7 . 16 Max Kills in Single Turn 4 | 1 1 4 1 3 . 1 3 . 2 Gunslinging . | . . . . . . . . . . Exploded 3 | . . 3 . 3 . 1 3 . 2 Melee 2 | . . . 1 2 . . . . . Uniques/NPCs Destroyed . | . . . . . . . . . . Combat | -11 -10 -9 -8 -8 -7 -6 -6 -6 -6 -------- Run | Yrd Mat Mat Mat Gar Fac Fac Gar Fac Gar Hostile Shots Fired 1061 | . 88 94 4 98 . 154 395 . 228 Missed 294 | . 27 27 2 20 . 44 117 . 57 Hits 767 | . 61 67 2 78 . 110 278 . 171 Melee 11 | . . . . . . . . . 11 Projectile 756 | . 61 67 2 78 . 110 278 . 160 AOE 1 | . 1 . . . . . . . . Critical Strikes 29 | . 4 6 . 4 . 2 3 . 10 Actively Blocked 1 | . . . . . . 1 . . . Part Disruptions 3 | . . . . . . . 2 . 1 Damage Taken 10021 | . 708 819 29 992 . 1461 2899 . 3113 Core 1808 | . 163 145 . 185 . 166 432 . 717 Absorbed by Shields 7 | . . . . 7 . . . . . Redirected to Shielding 53 | . . . . . . 53 . . . Ignored by Resistances 630 | . . 78 4 116 . 82 104 . 246 Regen/Repaired (Parts) 102 | . 102 . . . . . . . . Core Remaining (%) 71 | 100 34 51 . 73 100 . . . . Volleys Fired 396 | 35 79 101 . 5 . 24 85 . 67 Largest 4 | 2 2 3 . 1 . 2 4 . 4 Hottest 345 | 70 100 129 . 33 . 170 340 . 345 Shots Fired 841 | 70 153 270 . 5 . 38 152 1 152 Gun 522 | 70 150 267 . . . 13 . . 22 Cannon 291 | . . . . . . 16 148 1 126 Launcher 24 | . . 3 . 5 . 9 4 . 3 Special 4 | . 3 . . . . . . . 1 Kinetic 354 | 35 82 217 . . . . . . 20 Thermal 458 | 35 71 50 . . . 29 148 1 124 Explosive 24 | . . 3 . 5 . 9 4 . 3 Electromagnetic 4 | . . . . . . . . . 4 Robot Hit Streak 23 | 4 17 21 . 6 . 23 11 . 15 Robot Miss Streak 6 | 5 5 6 . . . 2 3 . 3 Penetration Max . | . . . . . . . . . . Secondary Targets 7 | . 2 4 . . . 1 . . . Max Gunslinging Chain 1 | . 1 1 . . . 1 . . . Shots Hit Robots 629 | 34 104 175 22 75 . 41 76 . 102 Core Hits 301 | 13 44 84 10 29 . 31 45 . 45 Critical Kills 1 | . . . . . . . . . 1 Critical Parts Destroyed 7 | . 1 1 . . . 5 . . . Critical Strikes 27 | . 8 5 1 7 . 5 . . 1 Burn 11 | . 7 4 . . . . . . . Meltdown 1 | . . . . . . . . . 1 Destroy 2 | . 1 1 . . . . . . . Smash 5 | . . . . . . 5 . . . Sever 8 | . . . 1 7 . . . . . Melee Attacks 139 | . . . 31 98 1 9 . . . Impact 10 | . . . . . 1 9 . . . Slashing 119 | . . . 31 88 . . . . . Piercing . | . . . . . . . . . . Sneak Attacks 12 | . . . 4 4 . 4 . . . Combat Hostiles . | . . . . . . . . . . Follow-up Attacks 32 | . . . 9 23 . . . . . Damage Inflicted 16570 | 394 1079 2292 902 3299 . 1907 3054 . 3643 Guns 3837 | 394 1079 1807 . . . 295 . . 262 Cannons 6040 | . . . . . . 377 2504 . 3159 Explosions 2600 | . . 485 . 624 . 719 550 . 222 Melee 4093 | . . . 902 2675 . 516 . . . Ramming . | . . . . . . . . . . Kinetic 2209 | 143 489 1287 . . . . . . 290 Thermal 7656 | 251 590 520 . . . 672 2504 . 3119 Explosive 2600 | . . 485 . 624 . 719 550 . 222 Electromagnetic 12 | . . . . . . . . . 12 Impact 516 | . . . . . . 516 . . . Slashing 3577 | . . . 902 2675 . . . . . Piercing . | . . . . . . . . . . Highest Corruption 51 | . . . . . . 9 30 30 51 Average Corruption 18 | . . . . . . 7 16 30 42 Corruption Purged . | . . . . . . . . . . Corruption Blocked . | . . . . . . . . . . Effects 174 | . . . . . . 24 107 5 38 Message Errors 35 | . . . . . . 7 23 . 5 Matter Fused 38 | . . . . . . 5 27 2 4 Heat Flow Errors 19 | . . . . . . 3 13 1 2 Energy Discharges 24 | . . . . . . 7 14 1 2 Parts Rejected 1 | . . . . . . . . . 1 Data Loss (minor) 16 | . . . . . . . 11 . 5 Data Loss (major) 5 | . . . . . . 1 4 . . Misfires 12 | . . . . . . . 10 1 1 Alerts 3 | . . . . . . . 2 . 1 Misdirections 2 | . . . . . . . . . 2 Weapon Failures 19 | . . . . . . 1 3 . 15 Overload Shots . | . . . . . . . . . . Overflow Damage 794 | . . 17 100 139 . 337 93 . 108 Projectiles 119 | . . . . . . . 43 . 76 Explosions 135 | . . 17 . 18 . 18 50 . 32 Melee 540 | . . . 100 121 . 319 . . . Knockbacks 1 | . . . . . . 1 . . . Impact 1 | . . . . . . 1 . . . Kinetic . | . . . . . . . . . . Secondary . | . . . . . . . . . . Self-Inflicted Damage 66 | . . . . . . . . . 66 Shots 3 | . . . . . . . . . 3 Rammed . | . . . . . . . . . . Targets Rammed . | . . . . . . . . . . Kicked . | . . . . . . . . . . Crushed . | . . . . . . . . . . Highest Temperature 580 | 100 242 102 . 17 . 194 377 230 580 Average Temperature 80 | 35 76 28 . 8 . 43 97 95 199 Received Heat Transfer 2754 | . 249 432 18 571 . 348 384 . 752 Effects 21 | . . . . . . . 4 . 17 Shutdowns 2 | . . . . . . . . . 2 Energy Bleed 3 | . . . . . . . 1 . 2 Interference 4 | . . . . . . . 3 . 1 Matter Decay 1 | . . . . . . . . . 1 Short Circuit 3 | . . . . . . . . . 3 Damage (minor) 1 | . . . . . . . . . 1 Damage (major) 5 | . . . . . . . . . 5 Damage (core) 2 | . . . . . . . . . 2 Siege Activations . | . . . . . . . . . . Martial Activations . | . . . . . . . . . . Shielding Activations . | . . . . . . . . . . Robots Disrupted . | . . . . . . . . . . Combat Hostiles . | . . . . . . . . . . Robots Corrupted 3 | . . . . . . 3 . . . Combat Hostiles 1 | . . . . . . 1 . . . Parts Fried 8 | . . . . . . 8 . . . Impact Corruptions 9 | . . . . . . 9 . . . Robots Melted 3 | . 1 . . . . . . . 2 Combat Hostiles 3 | . 1 . . . . . . . 2 Parts Melted 35 | 2 5 5 . . . 4 9 . 10 Heat Transferred 11681 | 740 2257 1739 . . . 1119 2614 . 3212 Parts Sabotaged . | . . . . . . . . . . Parts Stolen . | . . . . . . . . . . Parts Stripped . | . . . . . . . . . . Power Chain Reactions . | . . . . . . . . . . Alert | -11 -10 -9 -8 -8 -7 -6 -6 -6 -6 ------- Run | Yrd Mat Mat Mat Gar Fac Fac Gar Fac Gar Maximum Alert Level 5 | . 1 2 . 4 2 1 5 4 4 Low Security (%) 29 | 100 95 18 100 17 . 23 1 . . Level 1 34 | . 4 69 . 29 . 76 30 . . Level 2 9 | . . 11 . 8 100 . 16 . . Level 3 10 | . . . . 34 . . 12 . 70 Level 4 8 | . . . . 9 . . 16 100 29 Level 5 7 | . . . . . . . 22 . . High Security . | . . . . . . . . . . Max Security . | . . . . . . . . . . Sterilizations 1 | . . 1 . . . . . . . Peak Influence 2263 | 15 219 469 100 1257 659 295 2263 1243 1343 Initial 1187 | . . 39 100 . 659 294 123 1187 863 Average 531 | 1 137 265 27 594 632 231 969 1196 1081 Influence Increases 6727 | 45 582 1117 144 1337 1 338 2390 86 687 Destroy 0b10 Robot/C 3160 | . 340 680 60 600 . 240 720 . 520 Destroy 0b10 Robot/NC 220 | 45 30 75 30 20 . 15 5 . . Destroy Leader 426 | . 78 178 20 30 . 60 40 . 20 Allied During Kill 331 | . . 48 . 205 . . 75 . 3 Successful Hack 154 | . 29 64 4 35 . 10 12 . . Select Force Hacks 90 | . 30 30 30 . . . . . . Disable Machine 120 | . . . . . . . 45 75 . Anti-Garrison Action 1750 | . . . . 350 . . 1400 . . Destroy Structure 236 | . . 27 . 82 1 13 78 11 24 Lose Combat Pursuer 240 | . 75 15 . 15 . . 15 . 120 Influence Decreases 5387 | 45 488 974 381 80 658 762 303 1116 580 Entered New Map 2595 | . . 55 137 . 598 306 53 1076 370 Time Decay 1852 | 45 488 649 244 . 60 326 . 40 . Lost Part 490 | . . 60 . 40 . 70 130 . 190 Lost Ally 300 | . . 60 . 40 . 60 120 . 20 Purge Threat 150 | . . 150 . . . . . . . Squads Dispatched 12 | . 2 3 2 . . 5 . . . Investigation 5 | . 1 2 2 . . . . . . Extermination 2 | . . . . . . 2 . . . Reinforcement 4 | . 1 1 . . . 2 . . . Assault . | . . . . . . . . . . Garrison 1 | . . . . . . 1 . . . Intercept . | . . . . . . . . . . Searches Triggered . | . . . . . . . . . . Construction Impeded . | . . . . . . . . . . Haulers Reinforced . | . . . . . . . . . . Active Scanning Responses 1 | . . . . . . . . . 1 Cargo Convoy Interrupts . | . . . . . . . . . . Alert ID Control Effect 2 | . . . . . . . . . 2 Stealth | -11 -10 -9 -8 -8 -7 -6 -6 -6 -6 --------- Run | Yrd Mat Mat Mat Gar Fac Fac Gar Fac Gar Distress Signals 5 | . . 4 1 . . . . . . Communications Jammed 1 | . . . . . . 1 . . . Distress Signals . | . . . . . . . . . . Times Spotted 210 | . 33 40 9 34 . 13 38 . 43 Peak Tracking Total 17 | . 4 5 2 5 . 7 8 . 17 Tactical Retreats 8 | . 2 1 . 1 . . 1 . 3 Traps | -11 -10 -9 -8 -8 -7 -6 -6 -6 -6 ------- Run | Yrd Mat Mat Mat Gar Fac Fac Gar Fac Gar Traps Triggered 9 | . . . . 1 . 1 6 . 1 Indirectly . | . . . . . . . . . . Trap Hack Attempts 37 | . . . . 37 . . . . . Triggered . | . . . . . . . . . . Disarmed 1 | . . . . 1 . . . . . Reprogrammed . | . . . . . . . . . . Reused . | . . . . . . . . . . Traps Extracted . | . . . . . . . . . . Installed . | . . . . . . . . . . Triggered . | . . . . . . . . . . Machines | -11 -10 -9 -8 -8 -7 -6 -6 -6 -6 ---------- Run | Yrd Mat Mat Mat Gar Fac Fac Gar Fac Gar Machines Disabled 14 | . . . . 3 . . 6 5 . Max in Single Turn 5 | . . . . 1 . . 1 5 . Garrison Relay 7 | . . . . 4 . . 3 . . Machines Repaired . | . . . . . . . . . . Machines Dismantled . | . . . . . . . . . . Machines Sabotaged . | . . . . . . . . . . Overloaded Fab Kills . | . . . . . . . . . . Hacking | -11 -10 -9 -8 -8 -7 -6 -6 -6 -6 --------- Run | Yrd Mat Mat Mat Gar Fac Fac Gar Fac Gar Machines Accessed 38 | . 10 12 4 4 1 3 1 2 1 Terminals 24 | . 7 9 1 4 . . 1 1 1 Fabricators 1 | . . . . . 1 . . . . Repair Stations 2 | . 1 . . . . 1 . . . Recycling Units 4 | . 2 1 1 . . . . . . Scanalyzers 4 | . . 2 1 . . 1 . . . Garrison Access 3 | . . . 1 . . 1 . 1 . Total Hacks 114 | . 30 47 12 8 1 8 2 4 2 Successful 64 | . 19 30 7 3 . 3 1 1 . Failed 48 | . 11 16 5 5 1 4 1 3 2 Catastrophic 2 | . . . . . 1 . . 1 . Database Lockouts 2 | . . 1 . . . 1 . . . Manual 36 | . 18 12 5 . 1 . . . . Terminals 73 | . 19 36 3 8 . . 2 3 2 Fabricators 1 | . . . . . 1 . . . . Repair Stations 8 | . 4 . . . . 4 . . . Recycling Units 13 | . 7 3 3 . . . . . . Scanalyzers 14 | . . 8 3 . . 3 . . . Garrison Access 5 | . . . 3 . . 1 . 1 . Terminal Hacks 24 | . 6 14 . 3 . . 1 . . Robot Analysis 5 | . 2 3 . . . . . . . Prototype ID Bank 5 | . 2 3 . . . . . . . Open Door 1 | . . . . 1 . . . . . Branch Access Points 1 | . . 1 . . . . . . . Emergency Access Points 3 | . . 1 . 1 . . 1 . . Terminal Index 1 | . . 1 . . . . . . . Alert Level 1 | . . 1 . . . . . . . Unreport Threat 1 | . . 1 . . . . . . . Locate Traps 4 | . 2 2 . . . . . . . Hauler Manifests 1 | . . 1 . . . . . . . Garrison Registry 1 | . . . . 1 . . . . . Fabricator Hacks . | . . . . . . . . . . Repair Station Hacks 3 | . 2 . . . . 1 . . . Scan Component 2 | . 1 . . . . 1 . . . Repair 1 | . 1 . . . . . . . . Recycling Unit Hacks 5 | . 3 1 1 . . . . . . Report Inventory 4 | . 2 1 1 . . . . . . Retrieve Components 1 | . 1 . . . . . . . . Scanalyzer 11 | . . 7 3 . . 1 . . . Insert Component 2 | . . 2 . . . . . . . Analyze 1 | . . 1 . . . . . . . Retrieve Study 8 | . . 4 3 . . 1 . . . Garrison Access Hacks 3 | . . . 1 . . 1 . 1 . Unlock Access 3 | . . . 1 . . 1 . 1 . Unauthorized Hacks 18 | . 8 8 2 . . . . . . Terminals 15 | . 7 7 1 . . . . . . Botnet 4 | . 2 2 . . . . . . . Skim 11 | . 5 5 1 . . . . . . Fabricators . | . . . . . . . . . . Repair Stations . | . . . . . . . . . . Recycling Units 3 | . 1 1 1 . . . . . . Tunnel 3 | . 1 1 1 . . . . . . Scanalyzers . | . . . . . . . . . . Garrison Access . | . . . . . . . . . . Data Cores Recovered . | . . . . . . . . . . Used . | . . . . . . . . . . Hacking Detections 33 | . 9 11 4 3 1 3 . 1 1 Full Trace Events 4 | . . 1 1 2 . . . . . Feedback Events . | . . . . . . . . . . Feedback Blocked . | . . . . . . . . . . Robot Schematics Acquired . | . . . . . . . . . . Robots Built . | . . . . . . . . . . Authchips . | . . . . . . . . . . Time . | . . . . . . . . . . Total Robot Build Rating . | . . . . . . . . . . Part Schematics Acquired 1 | . . 1 . . . . . . . Parts Built . | . . . . . . . . . . Authchips . | . . . . . . . . . . Time . | . . . . . . . . . . Total Part Build Rating . | . . . . . . . . . . Part Studies Acquired 8 | . . 4 3 . . 1 . . . Parts Repaired 1 | . 1 . . . . . . . . Time 26 | . 26 . . . . . . . . Parts Recycled . | . . . . . . . . . . Recycled Matter . | . . . . . . . . . . Retrieved Matter . | . . . . . . . . . . Retrieved Components 9 | . 9 . . . . . . . . Parts Scanalyzed 1 | . . 1 . . . . . . . Part Schematics Acquired 1 | . . 1 . . . . . . . Parts Damaged . | . . . . . . . . . . Bothacking | -11 -10 -9 -8 -8 -7 -6 -6 -6 -6 ------------ Run | Yrd Mat Mat Mat Gar Fac Fac Gar Fac Gar Used RIF Installer 2 | . . . . 1 . . 1 . . Alert ID Control 1 | . . . . 1 . . . . . Program Shield 1 | . . . . . . . 1 . . Robots Hacked 6 | . . . . 5 . . . . 1 Non-combat . | . . . . . . . . . . Combat 6 | . . . . 5 . . . . 1 Robot Hacks Applied 6 | . . . . 5 . . . . 1 streamctrl_high 1 | . . . . . . . . . 1 formatsys_high 5 | . . . . 5 . . . . . Relay Couplers Released 27 | . . . . 15 . . 12 . . Machine Destruction 27 | . . . . 15 . . 12 . . Attached 6 | . . . . 4 . 1 . . 1 Fabnet Peak Effective % . | . . . . . . . . . . Robots Rewired 9 | . . . . 3 . . 6 . . Allies Hacked . | . . . . . . . . . . Hacks Repelled . | . . . . . . . . . . Allies | -11 -10 -9 -8 -8 -7 -6 -6 -6 -6 -------- Run | Yrd Mat Mat Mat Gar Fac Fac Gar Fac Gar Total Allies 18 | . . 3 . 8 . . 6 . 1 Largest Group 7 | . . 3 . 7 4 4 6 . 1 Highest-Rated Group 249 | . . 54 . 153 101 101 249 . 148 Highest-Rated Ally 148 | . . 18 . 39 39 39 43 . 148 Total Orders . | . . . . . . . . . . Ally Attacks 180 | . . 32 . 67 . 16 56 . 9 Total Damage 3732 | . . 763 . 1043 . 227 1495 . 204 Kills 36 | . . 9 . 13 . 1 11 . 2 Allies Corrupted . | . . . . . . . . . . Allies Melted . | . . . . . . . . . . X0-1V1 Amusement Gains 165 | . 20 15 10 30 . 10 30 . 50 Average Entertainment 34 | . 19 21 15 25 45 37 46 50 73 Good Acts 45 | . . 11 6 3 2 5 10 . 8 Bad Acts 24 | . . 6 1 4 1 . 10 . 2 Intel | -11 -10 -9 -8 -8 -7 -6 -6 -6 -6 ------- Run | Yrd Mat Mat Mat Gar Fac Fac Gar Fac Gar Active Infowar (turns) 5183 | 244 797 . 299 116 121 536 2641 91 338 Optics 2162 | . . . . . . . 2162 . . A.S.S. 613 | . . . . . . . 361 91 161 Traps 1177 | . . . 168 57 121 536 118 . 177 Seismic 1231 | 244 797 . 131 59 . . . . . Jamming 504 | . . . . . . 387 117 . . Robot Analysis Total 5 | . 2 3 . . . . . . . Derelict Logs Recovered . | . . . . . . . . . . Drone Launches . | . . . . . . . . . . Drone Recoveries . | . . . . . . . . . . Exploration | -11 -10 -9 -8 -8 -7 -6 -6 -6 -6 ------------- Run | Yrd Mat Mat Mat Gar Fac Fac Gar Fac Gar Turns Passed 11437 | 371 1439 2627 627 1321 123 738 3670 91 430 Spaces Moved 4790 | 168 785 990 388 659 98 409 1161 43 89 Core 17 | 15 . . . . . . 2 . . Treads 2057 | 153 178 446 11 61 . . 1076 43 89 Legs . | . . . . . . . . . . Wheels 2690 | . 607 544 377 598 98 409 57 . . Hover . | . . . . . . . . . . Flight 26 | . . . . . . . 26 . . Fastest Speed 50 | 50 115 130 130 130 115 115 160 210 210 Average Speed 194 | 150 144 226 133 149 115 144 274 210 223 Slowest Speed 2515 | 160 175 480 250 250 115 160 2515 210 410 Overloaded Moves . | . . . . . . . . . . Propulsion Burnouts . | . . . . . . . . . . Robots Hopped . | . . . . . . . . . . Potential Cave-ins . | . . . . . . . . . . Cave-ins Triggered . | . . . . . . . . . . Exploration Rate (%) 39 | 7 97 71 31 86 3 7 80 2 13 Regions Visited 9 Branch Regions . Pre-discovered Areas 5 | . 1 3 1 . . . . . . Known Exits Taken 4 | . . 1 1 . . 1 . 1 . Unknown Exits Taken 3 | 1 1 . . . 1 . . . . Scrap Searched . | . . . . . . . . . . Spaces Dug 1 | . . . . . 1 . . . . Terrain Destroyed 107 | . . 30 . 12 1 13 21 10 20 Melee 1 | . . . . . 1 . . . . Projectile 14 | . . . . . . 1 6 . 7 AOE 92 | . . 30 . 12 . 12 15 10 13 Terrain Rammed . | . . . . . . . . . . Walls Destroyed . | . . . . . . . . . . Machines Disabled . | . . . . . . . . . . Actions | -11 -10 -9 -8 -8 -7 -6 -6 -6 -6 --------- Run | Yrd Mat Mat Mat Gar Fac Fac Gar Fac Gar Total 6102 | 223 950 1210 462 877 107 503 1535 43 192 Wait 236 | . 34 30 30 12 . 15 110 . 5 Move 4783 | 167 784 989 388 658 97 408 1160 43 89 Hop . | . . . . . . . . . . Pick Up 162 | 13 26 30 9 22 4 16 37 . 5 Fast Attach 21 | 3 . 2 . 7 . . 4 . 5 Attach 74 | 4 2 6 2 8 2 15 21 . 14 Detach 4 | . . . . . . 1 1 . 2 Swap 77 | . 14 19 9 17 1 7 10 . . Drop 134 | 1 11 33 7 30 2 9 36 . 5 Fire 396 | 35 79 101 . 5 . 24 85 . 67 Melee 96 | . . . 17 70 1 8 . . . Ram . | . . . . . . . . . . Kick . | . . . . . . . . . . Crush . | . . . . . . . . . . Escape Stasis 16 | . . . . 8 . . 8 . . Rewire 66 | . . . . 3 . . 63 . . Trap 37 | . . . . 37 . . . . . Miscellaneous . | . . . . . . . . . . Route ------- -11/Scrapyard -10/Materials (discovered 6 exits: *Mat x3 / *Min x2 / *Sub) -9/Materials (discovered 3 exits: *Mat x2 / *Min) -8/Materials -8/Garrison (discovered 4 exits: *Fac x3 / [Mat]) -7/Factory -6/Factory (discovered 2 exits: Fac / Gar) -6/Garrison (discovered 3 exits: *Fac x3) -6/Factory -6/Garrison History --------- Turn | Location | Event 50 | -11/Scrapyard | Discovered new exit (range 16) 372 | -11/Scrapyard | Entered Materials 373 | -10/Materials | Build established: Mutant 586 | -10/Materials | Discovered new exit (range 16) 748 | -10/Materials | Discovered new exit (range 7) 814 | -10/Materials | Repaired Lgt. Treads? 962 | -10/Materials | Discovered new exit (range 16) 972 | -10/Materials | Derelicts attacked the area 1092 | -10/Materials | Discovered new exit (range 12) 1175 | -10/Materials | Core integrity fell below 50% 1289 | -10/Materials | Learned Storage stockpile data 1345 | -10/Materials | Learned Recycling recycling unit intel 1390 | -10/Materials | Identified exit to Mines 1390 | -10/Materials | Identified exit to Subcaves 1449 | -10/Materials | Loaded intel: 11 interactive machine locations 1490 | -10/Materials | Learned Storage stockpile data 1525 | -10/Materials | Learned location of 1 exit from Storage 1759 | -10/Materials | Prayed at D.C.S.S. Altar Unit 1811 | -10/Materials | Entered another Materials area 1811 | -9/Materials | Evolved 2 slots: Utility x1, Weapon x1 1926 | -9/Materials | TH resistance permanently improved by X0-1V1 (+10%; -100 max core) 1975 | -9/Materials | Identified exit to Materials 1975 | -9/Materials | X0-1V1 revealed exit location to -8/Materials 2074 | -9/Materials | X0-1V1 sent you to a vault 2313 | -9/Materials | Discovered new exit (range 15) 2331 | -9/Materials | X0-1V1 vaporized surrounding terrain (radius 15) 2356 | -9/Materials | Build established: Scavenger-Tank 2457 | -9/Materials | Central database locked down 3072 | -9/Materials | Build established: Scavenger-Gunner 3089 | -9/Materials | Learned Storage stockpile data 3118 | -9/Materials | Learned Storage stockpile data 3135 | -9/Materials | Learned location of Mines (-9) 3143 | -9/Materials | Learned location of 1 exit from Storage 3144 | -9/Materials | Loaded intel: 11 trap records 3146 | -9/Materials | Learned Storage security intel 3150 | -9/Materials | Learned Materials security intel 3194 | -9/Materials | Learned Storage security intel 3766 | -9/Materials | Build established: Gunner 3913 | -9/Materials | Identified exit to Mines 4108 | -9/Materials | X0-1V1 made a cryptic comment about sterilization and BL-4Z3 4148 | -9/Materials | X0-1V1 put everyone to sleep 4360 | -9/Materials | Sterilization system engaged 4360 | -9/Materials | Non-combat units ordered to evacuate 4438 | -9/Materials | Entered another Materials area 4438 | -8/Materials | Evolved 2 slots: Propulsion x1, Weapon x1 4539 | -8/Materials | X0-1V1 activates XOMVISION 4682 | -8/Materials | Melee accuracy permanently improved by X0-1V1 (+5%; -50 max core) 4758 | -8/Materials | Build established: Mutant 5065 | -8/Materials | Identified exit to Garrison 5065 | -8/Materials | Entered Garrison 5123 | -8/Garrison | Triggered checkpoint 5153 | -8/Garrison | X0-1V1 vaporized surrounding terrain (radius 21) 5172 | -8/Garrison | Installed Relay Interface Framework 5184 | -8/Garrison | Garrison Relay disabled 5289 | -8/Garrison | Triggered checkpoint 5376 | -8/Garrison | Discovered new exit (range 12) 5409 | -8/Garrison | Triggered checkpoint 5421 | -8/Garrison | Garrison Relay disabled 5437 | -8/Garrison | Discovered new exit (range 56) 5437 | -8/Garrison | Discovered new exit (range 73) 5437 | -8/Garrison | Discovered new exit (range 20) 5437 | -8/Garrison | Discovered new exit (range 81) 5679 | -8/Garrison | Triggered checkpoint 5783 | -8/Garrison | Triggered checkpoint 5784 | -8/Garrison | Build established: Commander-Mutant 5797 | -8/Garrison | Garrison Relay disabled 5898 | -8/Garrison | Core integrity permanently improved by X0-1V1 (+300) 5969 | -8/Garrison | Triggered checkpoint 6089 | -8/Garrison | Triggered checkpoint 6127 | -8/Garrison | Expanded RIF knowledge: Alert ID Control 6241 | -8/Garrison | Triggered checkpoint 6245 | -8/Garrison | Garrison Relay disabled 6386 | -8/Garrison | Entered Factory 6386 | -7/Factory | Accompanied by 4 allies 6386 | -7/Factory | Evolved 2 slots: Propulsion x1, Utility x1 6397 | -7/Factory | X0-1V1 vaporized surrounding terrain (radius 23) 6422 | -7/Factory | X0-1V1 activates XOMVISION 6480 | -7/Factory | Discovered new exit (range 8) 6505 | -7/Factory | X0-1V1 released a cloud of subatomizers 6509 | -7/Factory | Entered another Factory area 6509 | -6/Factory | Accompanied by 4 allies 6509 | -6/Factory | Evolved 2 slots: Utility x2 6709 | -6/Factory | Lost 4 allies 6732 | -6/Factory | Lost 6 parts (2n2u2w) 6743 | -6/Factory | Destroyed 9 combat bots 6757 | -6/Factory | X0-1V1 put everyone to sleep 6808 | -6/Factory | Found Prototype Device 6822 | -6/Factory | Garrison activated, responded to threat 6885 | -6/Factory | Identified exit to Garrison 7027 | -6/Factory | Build established: Mutant 7107 | -6/Factory | Central database locked down 7212 | -6/Factory | Identified exit to Factory 7212 | -6/Factory | X0-1V1 revealed exit location to -5/Factory 7247 | -6/Factory | Entered Garrison 7318 | -6/Garrison | Spotted B-75 Beast 7322 | -6/Garrison | Triggered checkpoint 7322 | -6/Garrison | Triggered checkpoint 7329 | -6/Garrison | X0-1V1 caused items to flee you 7345 | -6/Garrison | Destroyed 7 combat bots 7377 | -6/Garrison | Destroyed B-75 Beast 7410 | -6/Garrison | Lost 6 parts (2n2u2w) 7509 | -6/Garrison | X0-1V1 activates XOMVISION 7592 | -6/Garrison | Items stopped fleeing you 7968 | -6/Garrison | Build established: Scavenger-Gunner 8439 | -6/Garrison | Build established: Commander-Gunner 8550 | -6/Garrison | Phase Cannon+ reconfigured into Item Mimic 8584 | -6/Garrison | Garrison Relay disabled 8587 | -6/Garrison | Triggered checkpoint 8777 | -6/Garrison | Discovered new exit (range 8) 8816 | -6/Garrison | System corruption reached 10% 8859 | -6/Garrison | Triggered checkpoint 8859 | -6/Garrison | Garrison Relay disabled 8882 | -6/Garrison | Build established: Scavenger-Gunner 9067 | -6/Garrison | Triggered checkpoint 9170 | -6/Garrison | Heavy support dispatched to Factory 9201 | -6/Garrison | Triggered checkpoint 9239 | -6/Garrison | Garrison Relay disabled 9289 | -6/Garrison | Discovered new exit (range 23) 9366 | -6/Garrison | Expanded RIF knowledge: Program Shield 9603 | -6/Garrison | Build established: Gunner 9883 | -6/Garrison | System corruption reached 30% 9916 | -6/Garrison | Discovered new exit (range 10) 9941 | -6/Garrison | Triggered checkpoint 9953 | -6/Garrison | Triggered checkpoint 10021 | -6/Garrison | Core integrity fell below 50% 10022 | -6/Garrison | Heavy support dispatched to Factory 10293 | -6/Garrison | Core integrity restored by X0-1V1 (+250) 10302 | -6/Garrison | Found Prototype Device 10363 | -6/Garrison | Build established: Scavenger-Gunner 10556 | -6/Garrison | Found Prototype Device 10556 | -6/Garrison | Identified Active Sensor Suite (x2) 10612 | -6/Garrison | H-XX Assembler disabled 10654 | -6/Garrison | Found Active Sensor Suite 10841 | -6/Garrison | Build established: Skirmisher 10913 | -6/Garrison | Identified exit to Factory 10917 | -6/Garrison | Entered Factory 11008 | -6/Factory | Identified exit to Garrison 11008 | -6/Factory | Entered Garrison 11200 | -6/Garrison | Lost 5 parts (1n2u2w) 11365 | -6/Garrison | Spotted B-90 Cyclops 11380 | -6/Garrison | Hijacked Cyclops 5a control node with streamctrl_high 11421 | -6/Garrison | Core integrity fell below 20% 11439 | -6/Garrison | Core melted Last Messages --------------- 11434_ Destroyed VTOL Module. 11435_ Hcp. Battery destroyed. 11435_ Critical hit (Burn: +37). 11436_ Overheating: Grenade Launcher+ damaged (-16). 11436_ System corrupted: Phase Cannon+ rejected. 11436_ Destroyed VTOL Module. 11436_ Slug penetrates Wall. 11437_ Power failure, Rnf. Deuterium Engine shutdown. 11437_ Rnf. Deuterium Engine destroyed. 11437_ Penetrated by HV Slug. 11438_ Overheating: Energy bleed (-19). 11438_ Y-54 Guardian destroyed. 11438_ Broken Imp. Arc Projector destroyed. 11438_ X0-1V1 is interested. 11438_ Destroyed Broken Imp. Arc Projector. 11438_ S-27 Virus destroyed. 11439_ Overheating: Core damaged (-150). 11439_ X0-1V1 chortles! Map ----- +----------------------------------------------------+ | ?????????????????????????????????????????????????? | | ?????????????????????????????????????????????????? | | ?????????????????????????????????????????????????? | | ?????????????????????????????????????????????????? | | ?????????????????????????????????????????????????? | | ?????????????????????????????????????????????????? | | ?????????????????????????????????????????????????? | | ?????????????????????????????????????????????????? | | ?????????????????????????????????????????????????? | | ?????????????????????????????????????????????????? | | ?????????????????????????????????????????????????? | | ?????????????????????????????????????????????????? | | ?????????????????????????????????????????????????? | | ?????????????????????????????????????????????????? | | ?????????????????????????????????????????????????? | | ?????????????????????????????????????????????????? | | ?????????????????????????????????????????????????? | | ?????????????????????????????????????????????????? | | ??????????? ?????????????????????????????????????? | | ???????????# ???#???????????????????????????????? | | ??????????## ## ??????????????????????????????? | | ?????????? =|????????????????????????????? | | ????????? % % % %**=???????????????????????????? | | ????????? % % %% %[*g=####??????????????????????? | | ????????? % %% %%[/==%![#??????????????????????? | | ????????????????##==*### @##?????????????????????? | | ????????????????????% % =#???????????###???##### | | ???????????????? !|!%[Y*[ #############"#####"T"# | | ???????????? !!! ==] [* "# | | ??????????? h =* % ## #############=######## | | ???????????? ## Y!# ?# #??????????#"%###????? | | ???????????? ???# ####?# #??????????#[! #????? | | ????????????????#; ??????# #??????????#[ #????? | | ????????????????## ???????# #??????????#[ % #????? | | ?????????????????#????????# #??????????#[! #????? | | ??????????????????????????###??????????#%%%##????? | | ???????????????????????????????????????##![#?????? | | ????????????????????????????????????????#*=#?????? | | ???????????????????????????????????????##= ####??? | | ???????????????????????????????????????#][%%" #??? | | ????????????????????????????############++++###### | | ??????????????????????????? %^% | | ??????????????????????????? !^ | | ??????????????????????????? | | ???????????????????????????????################### | | ?????????????????????????????????????????????????? | | ?????????????????????????????????????????????????? | | ?????????????????????????????????????????????????? | | ?????????????????????????????????????????????????? | | ?????????????????????????????????????????????????? | +----------------------------------------------------+ Best States ------------- Heat Dissipation 144 Coolant Potential 65 Energy Generation 18 Energy Capacity 1510 Matter Stores 1000 Matter Capacity 1000 Sight Range 25 Robot Scan Range 20 Terrain Scan Density 10 Jamming Range 12 EM Shielding 2 Armor Coverage 225 Resistance: KI 33 Resistance: TH 25 Resistance: EM 15 Core Shielding 30 Evasion (%) 40 Targeting Accuracy 8 Core Analysis 6 Recoil Reduction 4 Particle Charging 15 Offensive Hacking 12 Relay Coupler Types 1 Relay Coupler Value 31 Item Schematics ----------------- Huge Storage Unit | -9/Materials | Scanalyzed Robot Schematics ------------------ None Fabricated ------------ Nothing Repaired ---------- Lgt. Treads | 27% | -10/Materials Studied --------- Wheel | -9/Materials | Hacked Rocket Launcher | -9/Materials | Hacked Rnf. Ion Engine | -9/Materials | Hacked Imp. Ion Engine | -9/Materials | Hacked Axe | -8/Materials | Hacked Arm. Treads | -8/Materials | Hacked Grenade Launcher | -8/Materials | Hacked Phase Cannon | -6/Factory | Hacked Alien Tech Used ----------------- None Achievements -------------- None Challenges ------------ None Game ------ Seed VisualTripodAutogun Manual? 0 Play Time 01:52:09 Cumulative 425.8 hours Start 2026.09.09 @ 03:30:51 End 2026.09.09 @ 05:22:41 Sessions 1 Manual Loads 0 Difficulty Rogue Special Mode None Game No. 309 Rogue 299 Adventurer 0 Explorer 10 Win Type - Total 5 Types 5/0/0/0/0/0/0/0/0/0 Lore% 82 Gallery% 66 Achievement% 47 Wizard Run 0 Options --------- Layout 2 ASCII 0 Keyboard 0 Movement Arrows Keybinds 1 Fullscreen 1 Font 24/Terminus Map View 50x44 Zoom Use 0% Tactical HUD 1 Map Filters NONE Filters NONE Steam 1 RUN: 8d58e9b1-6091-4fd8-9cc8-bc3ee9ff8965